Cogmind - Beta 17 @@@ ROGUE MODE // 2026.08.22 @ 23:04:20 Player: Petvaria Result: Destroyed by S-10 Pest with Light Assault Rifle Performance ------------- Evolutions (1) 500 Regions Visited (3) 600 Robots Destroyed (4) 20 Value Destroyed (32) 32 Prototype IDs (0) 0 Alien Tech Used (0) 0 Bonus (-11) -11 TOTAL SCORE: 1141 Bonus ------- Friendly Fire -11 Cogmind --------- Core Integrity 0/400 Matter 251/300 Energy 98/100 System Corruption 2% Temperature Cool (0) Movement Core (50) Location -9/Materials Parts ------- > --- POWER (1) -------- (None) > --- PROPULSION (2) --- (None) > --- UTILITY (4) ------ (None) > --- WEAPON (2) ------- (None) > --- INVENTORY (5) ---- Mining Laser Peak State ------------ > --- POWER ------------ (None) > --- PROPULSION ------- (None) > --- UTILITY ---------- (None) > --- WEAPON ----------- Small Laser Small Laser > --- INVENTORY -------- (None) [Rating: 2] Favorites ----------- Power None Propulsion None Utility None Weapon Small Laser Energy Gun Small Laser Build | -11 -10 -10 -9 ------- Run | Yrd Mat Min Mat Slots Evolved 2 | . . . 2 Power . | . . . . Propulsion . | . . . . Utility 2 | . . . 2 Weapon . | . . . . Parts Attached 2 | . 2 . . Power . | . . . . Engine . | . . . . Core . | . . . . Reactor . | . . . . Propulsion . | . . . . Treads . | . . . . Leg . | . . . . Wheel . | . . . . Hover . | . . . . Flight . | . . . . Utility . | . . . . Device . | . . . . Storage . | . . . . Processor . | . . . . Hackware . | . . . . Protection . | . . . . Artifact . | . . . . Weapon 2 | . 2 . . Energy Gun 2 | . 2 . . Energy Cannon . | . . . . Ballistic Gun . | . . . . Ballistic Cannon . | . . . . Launcher . | . . . . Special Weapon . | . . . . Impact Weapon . | . . . . Slashing Weapon . | . . . . Piercing Weapon . | . . . . Special Melee Weapon . | . . . . Unidentified Prototypes . | . . . . Parts Lost 2 | . . . 2 Power . | . . . . Propulsion . | . . . . Utility . | . . . . Weapon 2 | . . . 2 Highest Loss Streak 2 | . . . 2 To Critical Strikes . | . . . . Average Backups 1 | 1 1 1 1 Power . | . . . . Propulsion . | . . . . Utility . | . . . . Weapon 1 | 1 1 1 1 Tool/Special . | . . . . Unused Backups 1 | . . . 1 Power . | . . . . Propulsion . | . . . . Utility . | . . . . Weapon 1 | . . . 1 Tool/Special . | . . . . Average Slot Usage (%) 13 | . 12 28 11 Energy Gun 13 | . 12 28 11 Peak Build Rating 2 | . 2 2 2 Average Rating 1 | . . 2 . On Entrance 1 | . . 2 2 Avg Prop Armor Cover (%) . | . . . . Naked Turns 95 | . 30 . 65 Heaviest Build 2 | . 2 2 2 Greatest Support 3 | 3 3 3 3 Greatest Overweight (x) . | . . . . Average Overweight (x) . | . . . . Largest Inventory Capacity 5 | 5 5 5 5 Average Capacity 5 | 5 5 5 5 Most Carried 2 | 2 2 1 1 Average Carried 1 | 1 1 1 1 Final Capacity 5 | 5 5 5 5 Final Carried 2 | 2 1 1 1 Class Distribution -------------------- 100% | Mutant Dominant Class ---------------- Mutant | -10/Materials Mutant | -10/Mines Mutant | -9/Materials Resources | -11 -10 -10 -9 ----------- Run | Yrd Mat Min Mat Matter Collected 152 | 142 . . 10 Remotely . | . . . . Salvage Created 95 | . 56 . 39 Parts 5 | . 1 . 4 Haulers Intercepted 1 | . 1 . . Recyclers Shooed . | . . . . Parts Field Recycled . | . . . . Retrieved Matter . | . . . . Parts Self-Destructed . | . . . . Prevented . | . . . . Parts Restored . | . . . . Kills | -11 -10 -10 -9 ------- Run | Yrd Mat Min Mat Combat Hostiles Destroyed 3 | . . . 3 Guns 3 | . . . 3 Classes Destroyed 2 | . 1 . 1 Hauler 1 | . 1 . . Swarmer 3 | . . . 3 Best Kill Streak 3 | . 1 . 3 Combat Bots Only 3 | . . . 3 Max Kills in Single Turn 1 | . 1 . 1 Gunslinging . | . . . . Exploded . | . . . . Melee . | . . . . Uniques/NPCs Destroyed . | . . . . Combat | -11 -10 -10 -9 -------- Run | Yrd Mat Min Mat Hostile Shots Fired 71 | . . 3 68 Missed 18 | . . . 18 Hits 53 | . . 3 50 Projectile 53 | . . 3 50 Critical Strikes 2 | . . . 2 Damage Taken 563 | . . 24 539 Core 413 | . . 8 405 Absorbed by Shields . | . . . . Core Remaining (%) 98 | 100 . 96 . Volleys Fired 15 | . 5 . 10 Largest 2 | . 2 . 2 Hottest 80 | . 80 . 80 Shots Fired 30 | . 10 . 20 Gun 30 | . 10 . 20 Cannon . | . . . . Launcher . | . . . . Special . | . . . . Kinetic . | . . . . Thermal 30 | . 10 . 20 Explosive . | . . . . Electromagnetic . | . . . . Robot Hit Streak 3 | . 2 . 3 Robot Miss Streak 3 | . 1 . 3 Penetration Max . | . . . . Secondary Targets . | . . . . Shots Hit Robots 16 | . 6 . 10 Core Hits 8 | . 3 . 5 Critical Kills . | . . . . Critical Parts Destroyed . | . . . . Critical Strikes . | . . . . Melee Attacks . | . . . . Impact . | . . . . Slashing . | . . . . Piercing . | . . . . Sneak Attacks . | . . . . Combat Hostiles . | . . . . Follow-up Attacks . | . . . . Damage Inflicted 220 | . 89 . 131 Guns 200 | . 89 . 111 Cannons . | . . . . Explosions . | . . . . Melee . | . . . . Ramming 20 | . . . 20 Kinetic . | . . . . Thermal 200 | . 89 . 111 Explosive . | . . . . Electromagnetic . | . . . . Impact . | . . . . Slashing . | . . . . Piercing . | . . . . Highest Corruption 2 | . . . 2 Average Corruption 2 | . . . 2 Corruption Purged . | . . . . Corruption Blocked . | . . . . Effects 1 | . . . 1 Heat Flow Errors 1 | . . . 1 Overload Shots . | . . . . Overflow Damage . | . . . . Projectiles . | . . . . Explosions . | . . . . Melee . | . . . . Knockbacks . | . . . . Impact . | . . . . Kinetic . | . . . . Secondary . | . . . . Self-Inflicted Damage 9 | . . . 9 Shots . | . . . . Rammed 3 | . . . 3 Targets Rammed 3 | . . . 3 Kicked . | . . . . Crushed . | . . . . Highest Temperature 261 | . 31 . 261 Average Temperature 49 | . 8 . 87 Received Heat Transfer 114 | . . . 114 Siege Activations . | . . . . Martial Activations . | . . . . Shielding Activations . | . . . . Robots Disrupted . | . . . . Combat Hostiles . | . . . . Robots Corrupted . | . . . . Combat Hostiles . | . . . . Parts Fried . | . . . . Impact Corruptions . | . . . . Robots Melted . | . . . . Combat Hostiles . | . . . . Parts Melted 1 | . 1 . . Heat Transferred 450 | . 200 . 250 Parts Sabotaged . | . . . . Parts Stolen . | . . . . Parts Stripped . | . . . . Power Chain Reactions . | . . . . Alert | -11 -10 -10 -9 ------- Run | Yrd Mat Min Mat Maximum Alert Level . | . . . . Low Security (%) 100 | 100 100 100 100 Level 1 . | . . . . Level 2 . | . . . . Level 3 . | . . . . Level 4 . | . . . . Level 5 . | . . . . High Security . | . . . . Max Security . | . . . . Peak Influence 90 | . 7 2 90 Initial 2 | . . 2 . Average 30 | . 1 1 49 Influence Increases 137 | . 7 . 130 Destroy 0b10 Robot/C 60 | . . . 60 Destroy 0b10 Robot/NC 5 | . 5 . . Destroy Leader 12 | . 2 . 10 Lose Combat Pursuer 60 | . . . 60 Influence Decreases 87 | . . 7 80 Entered New Map 5 | . . 5 . Time Decay 62 | . . 2 60 Lost Part 20 | . . . 20 Squads Dispatched 1 | . . . 1 Investigation . | . . . . Extermination . | . . . . Reinforcement 1 | . . . 1 Assault . | . . . . Garrison . | . . . . Intercept . | . . . . Searches Triggered . | . . . . Construction Impeded . | . . . . Haulers Reinforced . | . . . . Active Scanning Responses . | . . . . Cargo Convoy Interrupts . | . . . . Stealth | -11 -10 -10 -9 --------- Run | Yrd Mat Min Mat Distress Signals 2 | . . . 2 Communications Jammed . | . . . . Distress Signals . | . . . . Times Spotted 19 | . . 3 16 Peak Tracking Total 9 | . . 3 9 Tactical Retreats 2 | . . . 2 Traps | -11 -10 -10 -9 ------- Run | Yrd Mat Min Mat Traps Triggered . | . . . . Indirectly . | . . . . Trap Hack Attempts . | . . . . Triggered . | . . . . Disarmed . | . . . . Reprogrammed . | . . . . Reused . | . . . . Traps Extracted . | . . . . Installed . | . . . . Triggered . | . . . . Machines | -11 -10 -10 -9 ---------- Run | Yrd Mat Min Mat Machines Disabled . | . . . . Max in Single Turn . | . . . . Machines Repaired . | . . . . Machines Dismantled . | . . . . Machines Sabotaged . | . . . . Overloaded Fab Kills . | . . . . Hacking | -11 -10 -10 -9 --------- Run | Yrd Mat Min Mat Machines Accessed . | . . . . Terminals . | . . . . Fabricators . | . . . . Repair Stations . | . . . . Recycling Units . | . . . . Scanalyzers . | . . . . Garrison Access . | . . . . Total Hacks . | . . . . Successful . | . . . . Failed . | . . . . Catastrophic . | . . . . Database Lockouts . | . . . . Manual . | . . . . Terminals . | . . . . Fabricators . | . . . . Repair Stations . | . . . . Recycling Units . | . . . . Scanalyzers . | . . . . Garrison Access . | . . . . Terminal Hacks . | . . . . Fabricator Hacks . | . . . . Repair Station Hacks . | . . . . Recycling Unit Hacks . | . . . . Scanalyzer . | . . . . Garrison Access Hacks . | . . . . Unauthorized Hacks . | . . . . Terminals . | . . . . Fabricators . | . . . . Repair Stations . | . . . . Recycling Units . | . . . . Scanalyzers . | . . . . Garrison Access . | . . . . Data Cores Recovered . | . . . . Used . | . . . . Hacking Detections . | . . . . Full Trace Events . | . . . . Feedback Events . | . . . . Feedback Blocked . | . . . . Robot Schematics Acquired . | . . . . Robots Built . | . . . . Authchips . | . . . . Time . | . . . . Total Robot Build Rating . | . . . . Part Schematics Acquired . | . . . . Parts Built . | . . . . Authchips . | . . . . Time . | . . . . Total Part Build Rating . | . . . . Part Studies Acquired . | . . . . Parts Repaired . | . . . . Time . | . . . . Parts Recycled . | . . . . Recycled Matter . | . . . . Retrieved Matter . | . . . . Retrieved Components . | . . . . Parts Scanalyzed . | . . . . Part Schematics Acquired . | . . . . Parts Damaged . | . . . . Bothacking | -11 -10 -10 -9 ------------ Run | Yrd Mat Min Mat Used RIF Installer . | . . . . Robots Hacked . | . . . . Non-combat . | . . . . Combat . | . . . . Robot Hacks Applied . | . . . . Relay Couplers Released . | . . . . Fabnet Peak Effective % . | . . . . Robots Rewired . | . . . . Allies Hacked . | . . . . Hacks Repelled . | . . . . Allies | -11 -10 -10 -9 -------- Run | Yrd Mat Min Mat Total Allies . | . . . . Largest Group . | . . . . Highest-Rated Group . | . . . . Highest-Rated Ally . | . . . . Total Orders . | . . . . Ally Attacks . | . . . . Total Damage . | . . . . Kills . | . . . . Allies Corrupted . | . . . . Allies Melted . | . . . . Intel | -11 -10 -10 -9 ------- Run | Yrd Mat Min Mat Active Infowar (turns) . | . . . . Robot Analysis Total . | . . . . Derelict Logs Recovered . | . . . . Drone Launches . | . . . . Drone Recoveries . | . . . . Exploration | -11 -10 -10 -9 ------------- Run | Yrd Mat Min Mat Turns Passed 232 | 12 59 22 139 Spaces Moved 333 | 20 82 43 188 Core 333 | 20 82 43 188 Treads . | . . . . Legs . | . . . . Wheels . | . . . . Hover . | . . . . Flight . | . . . . Fastest Speed 50 | 50 50 50 50 Average Speed 50 | 50 50 50 50 Slowest Speed 50 | 50 50 50 50 Overloaded Moves . | . . . . Propulsion Burnouts . | . . . . Robots Hopped . | . . . . Potential Cave-ins . | . . . . Cave-ins Triggered . | . . . . Exploration Rate (%) 17 | 4 21 19 24 Regions Visited 3 Branch Regions 1 Pre-discovered Areas . | . . . . Known Exits Taken . | . . . . Unknown Exits Taken 3 | 1 1 1 . Scrap Searched . | . . . . Spaces Dug . | . . . . Terrain Destroyed . | . . . . Melee . | . . . . Projectile . | . . . . AOE . | . . . . Terrain Rammed . | . . . . Walls Destroyed . | . . . . Machines Disabled . | . . . . Actions | -11 -10 -10 -9 --------- Run | Yrd Mat Min Mat Total 365 | 21 89 42 213 Wait 12 | . . . 12 Move 330 | 19 81 42 188 Hop . | . . . . Pick Up 3 | 2 1 . . Fast Attach . | . . . . Attach 2 | . 2 . . Detach . | . . . . Swap . | . . . . Drop . | . . . . Fire 15 | . 5 . 10 Melee . | . . . . Ram 3 | . . . 3 Kick . | . . . . Crush . | . . . . Escape Stasis . | . . . . Rewire . | . . . . Trap . | . . . . Miscellaneous . | . . . . Route ------- -11/Scrapyard -10/Materials -10/Mines -9/Materials History --------- Turn | Location | Event 3 | -11/Scrapyard | Discovered new exit (range 15) 13 | -11/Scrapyard | Entered Materials 14 | -10/Materials | Met a group of wandering Federalists 64 | -10/Materials | Discovered new exit (range 10) 72 | -10/Materials | Entered Mines 92 | -10/Mines | Discovered new exit (range 4) 94 | -10/Mines | Entered Materials 94 | -9/Materials | Evolved 2 slots: Utility x2 203 | -9/Materials | Core integrity fell below 50% 211 | -9/Materials | Core integrity fell below 20% 233 | -9/Materials | Destroyed by S-10 Pest with Light Assault Rifle Last Messages --------------- O-16 Technician: "IFF HANDSHAKE FAILED. SECURING TERMINAL." ALERT: Hostiles spotted, dispatching reinforcements to Terminal M001. U-05 Engineer works on Atomic Centrifuge. A-02 Transporter sends out distress signal. U-05 Engineer works on Atomic Centrifuge. Sml. Laser destroyed. U-05 Engineer works on Atomic Centrifuge. Sml. Laser destroyed. U-05 Engineer works on Atomic Centrifuge. Critical hit (Burn: +37). R-06 Scavenger suffers critical hit (Burn). R-06 Scavenger destroyed. Slammed into R-06 Scavenger. Slammed into O-16 Technician. Destabilizing: System corrupted (+2). Slammed into A-02 Transporter. K-01 Serf collects debris. System corrupted: Heat flow error (+289). Map ----- +----------------------------------------------------+ | ??????????????????????????????????? | | ??????????????????????????????????? | | ??????????????????????????????????? | | ??????????????????????????????????? | | ??????????????????????????????????? | | ??????????????????????????????????? | | ??????????????????????????????????? | | ??????????????????????????????????? | | ??????????????????????????????????? | | ??????????????????????????????????? | | ??????????????????????????????????? | | ??????????????????????????????????? | | ??????????????????????????????????? | | ??????????????????????????????????? | | ?????????##???????????????????????? | | ?????????# ??????????????????????? | | ?????????# ??????#??????????????? | | ?????????# """ #??????????????? | | ?????????# """"" #??????????????? | | ?????????# """"" #??????????????? | | ?????????# """"" #??????????????? | | ?????????# """ ????????????????? | | ??????????? ??????????????????? | | #############+#??????????????? ???? | | # s ss [ # #############?# #?? | | # """"" @ + #?# #?? | | # """"""""" # #?# #?? | | # """ """ # #?# #?? | | # # #?# #?? | | ############# #?# #?? | | ???????# #?# #?? | | ???????# #?# #?? | | ???????# // """ """ #?# #?? | | ???????# // """ """ #?# #?? | | ???????# """ """ ### ##? | | ???????+ ## ## | | ???????# ## | | ???????# """ """ """ | | ???????# """ """ """ | | ???????? ???" """ """ *### ## | | ???????????? ? #?#######? | | ????????????? ?? #????????? | | ????????????????"" """ #????????? | | ????????????????"" """ #????????? | | ????????????????"" """ ?????????? | | ????????????????? ?? ?????????? | | ????????????????? ???? ?????????? | | ????????????????????? ?????????? | | ????????????????????? ??????????? | | ????????????????????? ??????????? | +----------------------------------------------------+ Best States ------------- Heat Dissipation 28 Energy Generation 5 Energy Capacity 100 Matter Stores 251 Matter Capacity 300 Sight Range 16 Terrain Scan Density 10 Evasion (%) 50 Item Schematics ----------------- None Robot Schematics ------------------ None Fabricated ------------ Nothing Repaired ---------- Nothing Studied --------- None Alien Tech Used ----------------- None Achievements -------------- None Challenges ------------ None Game ------ Seed NetworkedBottomlessSlayer Manual? 0 Play Time 00:04:17 Cumulative 572.1 hours Start 2026.08.22 @ 23:01:22 End 2026.08.22 @ 23:04:20 Sessions 1 Manual Loads 0 Difficulty Rogue Special Mode None Game No. 323 Rogue 323 Adventurer 0 Explorer 0 Win Type - Total 37 Types 18/2/7/2/1/1/1/2/1/2 Lore% 97 Gallery% 92 Achievement% 88 Wizard Run 0 Options --------- Layout 1 ASCII 0 Keyboard 0 Movement Numpad Keybinds 0 Fullscreen 1 Font 24/Proggy Map View 50x35 Zoom Use 0% Tactical HUD 0 Map Filters NONE Filters NONE Steam 1 RUN: dce40fea-b7b4-4e71-afe4-1dc80c08655d